[Event "Susha Chess Rapid 2022"]
[Site "Shusha"]
[Date "2022.09.22"]
[Round "5.3"]
[White "Mamedyarov, Shakhriyar"]
[Black "Yilmaz, Mustafa"]
[Result "1-0"]
[ECO "D38"]
[WhiteElo "2757"]
[BlackElo "2633"]
[Annotator "TA"]
[PlyCount "104"]
[EventDate "2022.09.21"]
[EventType "tourn"]
[EventCountry "AZE"]
[SourceTitle "playchess.com"]
[Source "ChessBase"]
[SourceQuality "1"]
[TimeControl "900+10"]

{[%evp 9,104,15,9,12,0,0,0,-55,-45,-40,-38,-79,-59,-45,29,0,0,-14,0,0,0,-8,-2,-17,-13,-6,0,0,29,16,33,41,34,36,29,27,31,42,49,16,116,107,105,115,145,136,153,149,209,200,188,186,189,180,187,181,283,279,275,270,394,375,362,330,331,357,341,337,352,336,621,531,911,714,631,332,519,0,1160,1192,1219,1219,1089,874,2451,1502,1835,1946,4634,4483,4627,4634,4634,4627,1915,1327,860]} 1. d4 {[%emt 0:00:01]} Nf6 {[%emt 0:00:01]} 2. c4 {[%emt 0:00:01]} e6 {[%emt 0:00:01]} 3. Nf3 {[%emt 0:00:09]} d5 {[%emt 0:00:01]} 4. Nc3 {[%emt 0:00:01]} Bb4 {[%emt 0:00:01]} 5. cxd5 {[%emt 0:00:03]} exd5 {[%emt 0:00:02]} 6. Bf4 {[%emt 0:00:01] D38: Queen's Gambit Declined: Ragozin Defence (4 Nf3 Bb4).} Ne4 {[%emt 0:00:19] is the new trend.} 7. Rc1 {[%emt 0:00:04]} Nc6 {[%emt 0:00:03]} 8. e3 {[%emt 0:00:08]} (8. Nd2 $11) 8... g5 $1 $15 {[%emt 0:00:49]} 9. Bg3 {[%emt 0:00:02]} h5 {[%emt 0:00:02]} 10. h4 {[%emt 0:00:13]} Nxg3 {[%emt 0:01:01]} 11. fxg3 {[%emt 0:00:02]} gxh4 {[%emt 0:00:07] [#]} ({Black should try} 11... g4 $15 12. Ng1 Bd6) 12. gxh4 $146 {[%emt 0:00:08]} ({Predecessor:} 12. Bb5 Qd6 13. gxh4 Qg3+ 14. Kf1 Rg8 15. Rg1 Bxc3 16. Rxc3 Bd7 17. Rc5 a6 18. Ba4 {½-½ (50) Carlsen,M (2862)-Giri,A (2764) chess24.com INT 2020}) 12... Qd6 {[%emt 0:00:19]} 13. a3 {[%emt 0:00:34]} Bxc3+ {[%emt 0:00:02]} 14. Rxc3 {[%emt 0:00:01]} Bd7 {[%emt 0:00:39]} 15. Qc2 {[%emt 0:01:13]} O-O-O {[%emt 0:00:09]} 16. Bb5 {[%emt 0:00:12]} f6 {[%emt 0:00:46]} 17. O-O {[%emt 0:00:29]} Rdg8 {[%emt 0:01:10]} 18. Ne1 {[%emt 0:00:54][%cal Bf3e1,Be1d3,Bd3f4][%mdl 32]} Kb8 {[%emt 0:00:21][%cal Oc6d4]} 19. Qf2 {[%emt 0:01:23]} Rh6 {[%emt 0:02:37]} 20. Qf4 {[%emt 0:01:16]} Qxf4 {[%emt 0:00:33]} 21. Rxf4 {[%emt 0:00:04]} Kc8 {[%emt 0:00:45]} 22. Nd3 {[%emt 0:01:34]} Nd8 {[%emt 0:01:20]} 23. Bxd7+ {[%emt 0:01:28]} Kxd7 {[%emt 0:00:02]} 24. Rf5 {[%emt 0:00:12]} Ke6 {[%emt 0:00:45] [#]} (24... c6 $1 $11 {remains equal.}) 25. Rxh5 $3 $16 {[%emt 0:00:32][%mdl 512] White is more active. Black is now going downhill.} Rxh5 {[%emt 0:00:43]} 26. Nf4+ {[%emt 0:00:05]} Kf5 {[%emt 0:01:43]} 27. Nxh5 {[%emt 0:00:03][%mdl 4096] Endgame KRN-KRN} Ne6 {[%emt 0:01:23]} 28. Kf2 {[%emt 0:01:23]} c6 {[%emt 0:01:39]} (28... Rg4 $16) 29. Kf3 {[%emt 0:00:23]} Kg6 {[%emt 0:00:03]} 30. Nf4+ {[%emt 0:00:35]} Nxf4 {[%emt 0:00:06]} 31. exf4 $18 {[%emt 0:00:01] KR-KR} ({Don't take} 31. Kxf4 f5 32. Rc5 Kf7 $16) 31... f5 {[%emt 0:00:05]} 32. Rb3 {[%emt 0:00:37]} b6 {[%emt 0:00:32]} (32... Rb8 $142 33. Re3 Kf6) 33. Rc3 {[%emt 0:00:06]} Rc8 {[%emt 0:00:01]} 34. b4 {[%emt 0:00:02] Inhibits c5.} Kf6 {[%emt 0:00:04]} (34... Kh5 {was worth a try.} 35. g3 a5) 35. h5 {[%emt 0:00:10]} Rc7 {[%emt 0:00:12]} 36. g4 {[%emt 0:00:09]} fxg4+ {[%emt 0:00:03]} 37. Kxg4 {[%emt 0:00:01] aiming for f5.} Rg7+ {[%emt 0:00:11]} 38. Kf3 {[%emt 0:00:51]} Rc7 {[%emt 0:00:10]} 39. Rc1 {[%emt 0:00:25]} Kf5 $2 {[%emt 0:00:42]} (39... Rc8 40. Rg1 c5 41. dxc5 bxc5 42. bxc5 Rxc5 43. Rg6+ Kf7) 40. Rg1 {[%emt 0:00:39]} c5 {[%emt 0:00:04]} 41. Rg5+ {[%emt 0:00:03]} Ke6 {[%emt 0:00:24]} 42. Rg6+ {[%emt 0:00:22]} Kf5 {[%emt 0:00:14]} (42... Kf7 {was called for.} 43. dxc5 bxc5 44. bxc5 Rxc5) 43. Rg5+ $2 {[%emt 0:00:40]} (43. dxc5 $18 bxc5 44. Rg5+ Kf6 45. bxc5 Rxc5 46. h6) 43... Kf6 $2 {[%emt 0:00:07][%mdl 8192]} (43... Ke6 $11) 44. dxc5 {[%emt 0:00:20] White is clearly winning.} bxc5 {[%emt 0:00:07]} 45. Rxd5 {[%emt 0:00:04]} cxb4 {[%emt 0:00:07]} 46. axb4 {[%emt 0:00:01]} Rc1 {[%emt 0:00:10]} 47. h6 {[%emt 0:00:33][%cal Bh5h6,Bh6h7][%mdl 32] Rh5 is the strong threat.} Kg6 {[%emt 0:01:15] Prevents Rh5.} 48. Rd6+ {[%emt 0:00:09]} Kf5 {[%emt 0:00:03]} 49. h7 {[%emt 0:00:51]} Rh1 {[%emt 0:00:09]} 50. Rd7 {[%emt 0:00:38] Intending b5 and mate.} a6 {[%emt 0:00:42]} 51. Rf7+ {[%emt 0:00:25]} Kg6 {[%emt 0:00:02]} 52. Ra7 {[%emt 0:00:06] Black must now prevent Ke4.} Kf5 {[%emt 0:00:02] Weighted Error Value: White=0.29 (precise) /Black=0.33} 1-0

[Event "Susha Chess Rapid 2022"]
[Site "Shusha"]
[Date "2022.09.22"]
[Round "5.4"]
[White "Guseinov, Gadir"]
[Black "Maghsoodloo, Parham"]
[Result "0-1"]
[ECO "B67"]
[WhiteElo "2661"]
[BlackElo "2721"]
[Annotator "TA"]
[PlyCount "168"]
[EventDate "2022.09.21"]
[EventType "tourn"]
[EventCountry "AZE"]
[SourceTitle "playchess.com"]
[Source "ChessBase"]
[SourceQuality "1"]
[TimeControl "900+10"]

{[%evp 19,168,32,39,35,41,33,29,15,57,22,54,25,35,34,33,31,54,68,70,64,69,60,60,0,0,0,0,0,0,-166,-96,-82,0,0,0,0,0,0,0,0,0,-41,-31,-31,-33,-34,-34,-38,-37,-122,0,0,0,-14,-14,-20,-31,-31,-20,-20,0,-81,-2,-3,-8,-37,-33,-31,-8,-8,0,-84,-89,-89,-93,-178,-173,-156,-164,-168,0,0,0,-8,0,0,0,-34,-32,-32,0,-8,-8,-338,-331,-814,-785,-1015,-896,-1593,-1346,-1490,-1417,-12240,-11008,-4011,0,0,0,-426,0,-29976,0,0,0,-29978,0,0,0,-1519,-1501,-1494,-1479,-1479,-1470,-1447,-1364,-1357,-1350,-1335,-925,-29966,-29965,-5189,-11022,-1310,-1187,-29976,-29977,-29976,-29978,-29978,-29979,-29983,-29984,-29984,-29985,-29985,-29986,-29986,-29987]} 1. e4 {[%emt 0:00:02]} c5 {[%emt 0:00:04]} 2. Nc3 {[%emt 0:00:02]} Nc6 {[%emt 0:00:02]} 3. Nf3 {[%emt 0:00:02]} d6 {[%emt 0:00:27]} 4. d4 {[%emt 0:00:16]} cxd4 {[%emt 0:00:01]} 5. Nxd4 {[%emt 0:00:01]} Nf6 {[%emt 0:00:02]} 6. Bg5 {[%emt 0:00:07]} e6 {[%emt 0:00:02]} 7. Qd2 {[%emt 0:00:09]} a6 {[%emt 0:00:02]} 8. O-O-O {[%emt 0:00:10]} Bd7 {[%emt 0:00:02]} 9. Kb1 {[%emt 0:01:04]} Nxd4 {[%emt 0:00:03]} 10. Qxd4 {[%emt 0:00:01]} Be7 {[%emt 0:00:02]} 11. f3 {[%emt 0:01:42]} b5 {[%emt 0:00:48]} 12. Bxf6 {[%emt 0:00:54]} gxf6 {[%emt 0:00:27]} 13. Qd2 {[%emt 0:00:15]} h5 {[%emt 0:00:08]} 14. Bd3 {[%emt 0:00:06]} Qb6 {[%emt 0:00:06]} 15. Rhe1 {[%emt 0:00:04]} b4 {[%emt 0:00:26]} 16. Ne2 {[%emt 0:00:01]} a5 {[%emt 0:00:02]} 17. f4 {[%emt 0:00:16]} Bf8 {[%emt 0:00:11]} 18. Bc4 {[%emt 0:00:27]} Rc8 {[%emt 0:00:03]} 19. Qd3 {[%emt 0:00:12]} h4 {[%emt 0:01:02]} 20. f5 {[%emt 0:00:25]} e5 {[%emt 0:01:03]} 21. c3 {[%emt 0:00:57]} ({Better is} 21. Ng1 $14) 21... Bh6 $1 $11 {[%emt 0:00:37]} 22. cxb4 {[%emt 0:00:38]} axb4 {[%emt 0:01:08]} 23. b3 {[%emt 0:00:35]} Ke7 {[%emt 0:00:17]} 24. Ng1 $2 {[%emt 0:01:18] [#]} (24. a3 $1 $11) 24... Rhg8 {[%emt 0:00:16]} (24... Rxc4 $1 $19 {[%mdl 512]} 25. bxc4 (25. Qxc4 $2 Rc8 $19) 25... Ba4) 25. Re2 $17 {[%emt 0:00:04] [#]} (25. Qd5 $2 Rxc4 $1 {[%mdl 512]} 26. Qxc4 Rxg2 $19) 25... Rg4 {[%emt 0:01:43]} (25... Qd4 26. Qxd4 exd4 27. Nf3 $16 (27. Rxd4 Bb5 $16)) (25... Bb5 $1 $17) 26. Nf3 {[%emt 0:00:02]} Rcg8 {[%emt 0:00:01]} 27. Ne1 {[%emt 0:02:58]} Be8 {[%emt 0:01:25]} 28. Qh3 {[%emt 0:01:18]} Bc6 {[%emt 0:00:13]} 29. Qd3 $1 {[%emt 0:00:16]} Qc5 {[%emt 0:00:39]} 30. Qc2 {[%emt 0:00:22]} Be3 {[%emt 0:00:39]} 31. Bd5 {[%emt 0:01:05]} Bxd5 {[%emt 0:00:20]} 32. Rxd5 {[%emt 0:00:49]} Qxc2+ {[%emt 0:00:02]} 33. Nxc2 {[%emt 0:00:39]} Bc5 {[%emt 0:00:22]} 34. Ne1 {[%emt 0:00:18]} (34. Rdd2 $15) 34... R8g5 {[%emt 0:01:05]} (34... Rf4 $1 $17 35. h3 Rf1) 35. h3 {[%emt 0:00:25]} Rf4 {[%emt 0:00:17]} 36. Nd3 {[%emt 0:01:39]} Rf1+ 37. Kc2 Rg3 {[%emt 0:01:38]} 38. Nxc5 {[%emt 0:00:12]} Rc3+ {[%emt 0:00:18]} 39. Kb2 {[%emt 0:00:03]} dxc5 {[%emt 0:01:01]} 40. Rc2 {[%emt 0:00:26]} (40. a4 $11) 40... Re3 {[%emt 0:00:25]} (40... Rxc2+ $17 41. Kxc2 Ra1) 41. Rdxc5 $11 {[%emt 0:00:13]} Rxe4 {[%emt 0:00:04]} 42. a4 {[%emt 0:00:35]} (42. Rc7+ {looks sharper.} Kd6 43. a3 bxa3+ 44. Kxa3 Ref4 45. b4) 42... bxa3+ {[%emt 0:00:07]} (42... Rxf5 43. a5 Re1 44. Rb5 $14) 43. Kxa3 {[%emt 0:00:01]} Rxf5 {[%emt 0:00:03]} (43... Rd4 $5 {[%cal Rf1f5]}) 44. Rc7+ {[%emt 0:00:12]} Ke6 {[%emt 0:00:30]} 45. R2c6+ {[%emt 0:00:24]} (45. R7c6+ $11 Ke7 46. Rc7+ Kf8 47. Rd2) 45... Kd5 $17 {[%emt 0:00:02]} 46. Rc2 {[%emt 0:00:38]} Re1 {[%emt 0:00:59]} 47. R7c5+ {[%emt 0:00:17]} (47. b4 $17 {was called for.}) 47... Ke4 $19 {[%emt 0:00:07]} 48. b4 {[%emt 0:00:07]} Ra1+ $1 {[%emt 0:00:18]} 49. Kb3 {[%emt 0:00:06]} Rf4 $2 {[%emt 0:00:39]} (49... Rb1+ $19 50. Ka4 Rf4) 50. b5 $11 {[%emt 0:00:18]} Kf5 {[%emt 0:00:01]} 51. Rb2 {[%emt 0:00:14]} Ra5 {[%emt 0:00:03]} 52. Kc3 {[%emt 0:00:05]} Ke6 {[%emt 0:01:21]} 53. Rc7 {[%emt 0:00:14]} Ra3+ {[%emt 0:00:08]} 54. Rb3 {[%emt 0:00:07]} Rxb3+ {[%emt 0:00:15]} (54... Ra1 $5 {[%cal Ra1c1]} 55. Rc6+ (55. b6 Rc1+ 56. Kd3 Rxc7 $17) 55... Kd7 $15) 55. Kxb3 {[%emt 0:00:00]} Rf1 {[%emt 0:00:38]} 56. Rc4 $2 {[%emt 0:00:02][%mdl 8192]} (56. Kc2 $11 {and White stays safe.}) 56... Rb1+ $1 $19 {[%emt 0:00:06]} 57. Ka4 $2 {[%emt 0:00:00]} (57. Kc2 Rxb5 58. Rxh4) 57... f5 $19 {[%emt 0:00:13]} 58. Rxh4 {[%emt 0:00:02]} e4 {[%emt 0:00:01]} 59. Rh8 {[%emt 0:00:08]} f4 {[%emt 0:00:09]} 60. Rc8 {[%emt 0:00:53]} f3 {[%emt 0:01:13]} 61. gxf3 {[%emt 0:00:01]} exf3 {[%emt 0:00:01]} 62. Rc2 {[%emt 0:00:01]} Kf5 $2 {[%emt 0:00:01]} ({Black should play} 62... Ke5 $19 63. Rc5+ Kd4) 63. Ka5 $11 {[%emt 0:00:09]} Kf4 {[%emt 0:00:03]} 64. b6 $2 {[%emt 0:00:00][%mdl 8192] [#]} (64. Rc4+ $1 $11 {and White is okay.} Kg5 65. Rc2) 64... Kg3 $2 {[%emt 0:00:02]} (64... Rb3 $1 $19 {...Kg3 is the strong threat.} 65. h4 Ke3) 65. Ka6 $2 {[%emt 0:00:26][%mdl 8192]} (65. Rc3 $11) 65... Kxh3 $2 {[%emt 0:00:18]} (65... Ra1+ 66. Kb5 f2 67. Rxf2 Kxf2 68. h4 Kg3 69. h5 Rh1 70. Kc5 Rxh5+ 71. Kc6 f5 72. b7 Rh8 73. Kc7 f4 74. b8=Q Rxb8 75. Kxb8 f3 76. Kb7 f2 77. Kc6 f1=Q 78. Kc5 Qd3 79. Kb6 Kf4 80. Kc7 Ke5 81. Kc6 Qc4+ 82. Kb7 Qb5+ 83. Kc7 Ke6 84. Kc8 Kd6 85. Kd8 Qd7#) 66. b7 $1 $11 {[%emt 0:00:01]} f5 {[%emt 0:00:27]} 67. Rc4 $2 {[%emt 0:00:15][%mdl 8192]} (67. Ka7 $11) 67... Kg3 $2 {[%emt 0:00:10]} (67... f2 {mates} 68. b8=Q Rxb8 69. Rc1 Kg2 70. Ka7 Rb4 71. Rc2 Kg1 72. Rc1+ f1=Q 73. Rxf1+ Kxf1 74. Ka6 f4 75. Ka7 f3 76. Ka6 Rb1 77. Ka5 Kg2 78. Ka4 f2 79. Ka3 f1=Q 80. Ka2 Rb8 81. Ka3 Qa6#) 68. Rc1 $1 $11 {[%emt 0:00:01]} Rb4 {[%emt 0:00:20]} (68... Rb3 $5 69. Rc3 $8 Rb2 $11) 69. Rg1+ $2 {[%emt 0:00:29][%mdl 8192]} (69. Rc4 $11 Rb2 70. Rc2) 69... Kh2 $19 {[%emt 0:00:00]} ({Wrong is} 69... Kf4 $2 70. Rd1 f2 71. Rd4+ Kg5 72. Rxb4 $19) 70. Rg5 {[%emt 0:00:08] [#]} f4 $1 {[%emt 0:00:18]} 71. Rb5 {[%emt 0:00:17]} Rxb5 {[%emt 0:00:02]} (71... f2 72. b8=Q f1=Q 73. Qh8+ Kg2 74. Qg8+ Kh2 75. Qh8+ Kg2 76. Qg8+ Kf3 77. Qd5+ Ke3 78. Qc5+ Rd4 79. Qc3+ Qd3 80. Qe1+ Kf3 81. Qh1+ Kg3 82. Qg1+ Kh3 83. Qh1+ Kg4 84. Qg1+ Kh4 85. Qh1+ Kg4 86. Qg1+ Kh4 87. Qh1+ Kg4 $11) 72. Kxb5 {[%emt 0:00:01]} f2 {[%emt 0:00:01]} 73. b8=Q {[%emt 0:00:01]} f1=Q+ {[%emt 0:00:02]} 74. Kc5 {[%emt 0:00:11]} Kg2 {[%emt 0:00:12]} 75. Kd5 {[%emt 0:00:28]} Qd3+ {[%emt 0:00:03]} 76. Ke5 {[%emt 0:00:10]} f3 {[%emt 0:00:08]} 77. Qg8+ {[%emt 0:00:05]} Kf1 {[%emt 0:00:14]} 78. Qg3 {[%emt 0:00:14]} Ke2 {[%emt 0:00:02]} 79. Qg4 {[%emt 0:00:11]} Kd2 {[%emt 0:00:11]} 80. Qh4 {[%emt 0:00:13]} Qe3+ {[%emt 0:00:10]} 81. Kd6 {[%emt 0:00:04]} f2 {[%emt 0:00:07]} 82. Qb4+ {[%emt 0:00:03]} Ke2 {[%emt 0:00:03]} 83. Qg4+ {[%emt 0:00:11]} Qf3 {[%emt 0:00:02]} 84. Qe6+ {[%emt 0:00:01]} Kd1 {[%emt 0:00:05]} 0-1

[Event "Susha Chess Rapid 2022"]
[Site "Shusha"]
[Date "2022.09.22"]
[Round "5.5"]
[White "Kasimdzhanov, Rustam"]
[Black "Radjabov, Teimour"]
[Result "1/2-1/2"]
[ECO "C67"]
[WhiteElo "2670"]
[BlackElo "2747"]
[Annotator "TA"]
[PlyCount "43"]
[EventDate "2022.09.21"]
[EventType "tourn"]
[EventCountry "AZE"]
[SourceTitle "playchess.com"]
[Source "ChessBase"]
[SourceQuality "1"]
[TimeControl "900+10"]

{[%evp 18,43,12,14,17,20,12,22,18,18,18,7,12,6,4,15,13,0,14,0,0,0,0,4,2,0,2,0]} 1. e4 {[%emt 0:00:01]} e5 {[%emt 0:00:09]} 2. Nf3 {[%emt 0:00:01]} Nc6 {[%emt 0:00:02]} 3. Bb5 {[%emt 0:00:01]} Nf6 {[%emt 0:00:02]} 4. O-O {[%emt 0:00:03][%cal Bh1f1,Bf1e1,Be1e5][%mdl 32]} Nxe4 {[%emt 0:00:03]} 5. Re1 {[%emt 0:00:01]} Nd6 {[%emt 0:00:02]} 6. Nxe5 {[%emt 0:00:02]} Be7 {[%emt 0:00:05]} 7. Bf1 {[%emt 0:00:02]} Nxe5 {[%emt 0:00:11]} 8. Rxe5 {[%emt 0:00:02]} O-O {[%emt 0:00:04]} 9. d4 {[%emt 0:00:02]} Bf6 {[%emt 0:00:13]} 10. Re1 {[%emt 0:00:03] The position is equal.} Re8 {[%emt 0:00:08] C67: Ruy Lopez: Berlin Defence: 4 0-0 Nxe4.} 11. c3 {[%emt 0:00:12]} Rxe1 {[%emt 0:00:38]} 12. Qxe1 {[%emt 0:00:02]} Ne8 {[%emt 0:00:04]} 13. Bf4 {[%emt 0:00:19]} d5 {[%emt 0:00:13]} 14. Bd3 {[%emt 0:00:33]} g6 {[%emt 0:00:10]} 15. Nd2 {[%emt 0:01:34]} Ng7 {[%emt 0:00:06]} 16. Qe2 {[%emt 0:00:28]} c6 {[%emt 0:00:03] [#]} 17. Bh6 $1 $146 {[%emt 0:02:56][%mdl 8] A relevant novelty.} ({Predecessor:} 17. Re1 Bf5 18. Bxf5 Nxf5 19. Nf3 Ng7 20. Be5 Bxe5 21. Nxe5 Qd6 22. Qf3 f6 23. Ng4 Re8 24. Re5 Kf7 25. Nh6+ Kf8 26. Ng4 Kf7 27. Nh6+ Kf8 28. Ng4 Kf7 {½-½ (28) Wang,H (2744)-So,W (2776) Stavanger 2022}) 17... Qe8 {[%emt 0:01:52]} 18. Qf3 {[%emt 0:01:16]} Qe7 {[%emt 0:00:05]} 19. Nf1 {[%emt 0:00:35]} Bg5 {[%emt 0:01:32]} 20. Bxg5 {[%emt 0:00:33]} Qxg5 {[%emt 0:00:01]} 21. Re1 {[%emt 0:00:07]} Be6 {[%emt 0:00:02]} 22. Qg3 {A rather calm draw.  Weighted Error Value: White=0.04 (flawless) /Black=0.01 (flawless)} 1/2-1/2

[Event "Susha Chess Rapid 2022"]
[Site "Shusha"]
[Date "2022.09.23"]
[Round "6.1"]
[White "Durarbayli, Vasif"]
[Black "Kasimdzhanov, Rustam"]
[Result "1-0"]
[ECO "C50"]
[WhiteElo "2628"]
[BlackElo "2670"]
[Annotator "TA"]
[PlyCount "79"]
[EventDate "2022.09.21"]
[EventType "tourn"]
[EventCountry "AZE"]
[SourceTitle "playchess.com"]
[Source "ChessBase"]
[SourceQuality "1"]
[TimeControl "900+10"]

{[%evp 16,79,33,18,29,14,29,10,27,22,15,0,0,0,0,0,0,-6,0,0,0,0,0,0,0,0,8,0,0,0,0,0,0,-14,0,0,0,0,0,0,0,0,0,0,0,0,0,0,126,139,136,133,198,135,289,289,275,250,1328,1286,29984,29985,29985,29986,29987,29988]} 1. e4 {[%emt 0:00:02]} e5 {[%emt 0:00:01]} 2. Nf3 {[%emt 0:00:01]} Nc6 {[%emt 0:00:01]} 3. Bc4 {[%emt 0:00:01]} Nf6 {[%emt 0:00:01]} 4. d3 {[%emt 0:00:02]} Bc5 {[%emt 0:00:02]} 5. O-O {[%emt 0:00:02]} d6 {[%emt 0:00:02]} 6. c3 {[%emt 0:00:02]} h6 {[%emt 0:00:03]} 7. Re1 {[%emt 0:00:02]} O-O {[%emt 0:00:12]} 8. Nbd2 {[%emt 0:00:02]} Bb6 {[%emt 0:00:07]} 9. Bb3 {[%emt 0:00:06]} Ne7 {[%emt 0:00:07] C54: Giuoco Piano: 4 c3 Nf6, main lines with 5 d4 and 5 d3.} 10. Nc4 {[%emt 0:00:05]} Ng6 {[%emt 0:00:29]} 11. a4 $5 {[%emt 0:00:19][%mdl 4] Leaves trodden paths.} c6 {[%emt 0:00:04] The position is equal.} 12. Nxb6 {[%emt 0:01:00]} axb6 {[%emt 0:00:06]} 13. Be3 {[%emt 0:02:14]} Re8 {[%emt 0:00:20]} 14. h3 {[%emt 0:00:38] [#]} d5 $146 {[%emt 0:01:18]} ({Predecessor:} 14... Be6 15. Bxe6 {½-½ (15) Khachiyan,M (2479)-Amanov,Z (2359) Los Angeles 2012}) 15. Bc2 {[%emt 0:01:42]} c5 {[%emt 0:00:31]} 16. b4 {[%emt 0:01:55]} cxb4 {[%emt 0:00:38]} 17. cxb4 {[%emt 0:00:13]} d4 {[%emt 0:00:02]} 18. Bd2 {[%emt 0:00:18]} Be6 {[%emt 0:00:43]} 19. Bb3 {[%emt 0:00:12]} Qd7 {[%emt 0:00:11]} 20. Kh2 {[%emt 0:00:30]} b5 {[%emt 0:00:38]} 21. Bxe6 {[%emt 0:01:30]} (21. a5 {is more complex.} Rec8 22. Bxe6 Qxe6 23. Qb1) 21... Rxe6 {[%emt 0:00:07]} (21... Qxe6 {seems wilder.} 22. axb5 Rxa1 23. Qxa1 Qb3) 22. axb5 {[%emt 0:00:01]} Rxa1 {[%emt 0:00:15]} 23. Qxa1 {[%emt 0:00:01]} Qxb5 {[%emt 0:00:01]} 24. Qa8+ {[%emt 0:00:01]} Kh7 {[%emt 0:01:12]} 25. Qa3 {[%emt 0:00:02]} Nh5 {[%emt 0:02:24]} 26. g3 {[%emt 0:01:42] Inhibits Nhf4.} Rf6 {[%emt 0:00:39]} 27. Kg2 {[%emt 0:00:06]} Qd7 {[%emt 0:00:03][%cal Of6f3] Threatens to win with ...Rxf3!} 28. Rh1 {[%emt 0:01:21]} Ra6 {[%emt 0:01:27]} 29. Qb3 {[%emt 0:00:11]} f5 {[%emt 0:00:02]} 30. b5 {[%emt 0:00:37]} Rb6 {[%emt 0:02:10]} 31. Rb1 {[%emt 0:00:36]} f4 {[%emt 0:02:15] [#]} (31... fxe4 $11 32. dxe4 Nf6) 32. g4 $1 $16 {[%emt 0:00:19][%cal Bg3g4,Bg4g5][%mdl 32]} Nf6 {[%emt 0:00:05][%cal Of6g4]} 33. Ba5 $36 {[%emt 0:00:02][%mdl 2048] Black is under strong pressure.} Rd6 {[%emt 0:00:30][%cal Of6g4]} 34. Rc1 {[%emt 0:01:51]} ({White should play} 34. Bb4 $18) 34... b6 $2 {[%emt 0:01:03] A mistake that costs the game.} (34... Nxg4 $2 35. Rc7 Ne3+ 36. fxe3 $18) (34... Ne8 $16 35. Bb4 Qxb5) 35. Bb4 $18 {[%emt 0:00:01]} Qxb5 {[%emt 0:00:56] [#]} 36. g5 $1 {[%emt 0:00:20]} Nh5 {[%emt 0:01:17]} (36... hxg5 $2 37. Nxg5+ Kh6 38. Nf7+ Kh7 39. Nxd6 $18) (36... Ng8 37. gxh6 (37. Rc8 N8e7 $14) 37... Rd7) 37. Rc8 {[%emt 0:01:17][%csl Gc8][%cal Rb3g8]} Ne7 {[%emt 0:00:08] Against Qg8+} 38. Qf7 {[%emt 0:00:32] White mates.} Qd7 {[%emt 0:01:07]} 39. Bxd6 {[%emt 0:00:10]} Qxd6 {[%emt 0:00:07]} 40. Re8 {[%emt 0:00:08] Weighted Error Value: White=0.05 (flawless) /Black=0.29 (precise)} 1-0